fUSD/lending_fUSD_20250814
["ID","MTS","AMOUNT","RATE_DAILY","PERIOD"]
[379199215,1755185455305,-464.52,0.00027397,2]
[379199216,1755185455314,-5855.18,0.00027397,2]
[379199217,1755185455324,-5780.27,0.00027397,2]
[379199218,1755185455335,-3089.6,0.00027397,2]
[379199219,1755185455344,-739.92,0.00027397,2]
[379199220,1755185455354,-416.5,0.00027397,2]
[379199221,1755185455363,-400.0,0.00027397,2]
[379199222,1755185455373,-886.39,0.00027397,2]
[379199223,1755185455383,-400.0,0.00027397,2]
[379199224,1755185455393,-400.0,0.00027397,2]
[379199225,1755185455403,-472.58,0.00027397,2]
[379199226,1755185455412,-400.0,0.00027397,2]
[379199227,1755185455422,-461.97,0.00027397,2]
[379199228,1755185455432,-1053.86,0.00027397,2]
[379199229,1755185455442,-940.87,0.00027397,2]
[379199230,1755185455452,-400.0,0.00027397,2]
[379199231,1755185455461,-3146.02,0.00027397,2]
[379199232,1755185455471,-3815.64,0.00027397,2]
[379199233,1755185455481,-1358.53,0.00027397,2]
[379199234,1755185455491,-911.09,0.00027397,2]
[379199235,1755185455500,-400.0,0.00027397,2]
[379199236,1755185455510,-400.0,0.00027397,2]
[379199237,1755185455519,-2658.56,0.00027397,2]
[379199238,1755185455528,-400.0,0.00027397,2]
[379199239,1755185455538,-411.97227368,0.00027397,2]
[379199240,1755185455548,-400.0,0.00027397,2]
[379199241,1755185455557,-613.92,0.00027397,2]
[379199242,1755185455567,-1374.97,0.00027397,2]
[379199243,1755185455576,-400.0,0.00027397,2]
[379199244,1755185455586,-1629.79,0.00027397,2]
[379199245,1755185455595,-400.0,0.00027397,2]
[379199246,1755185455605,-2054.56,0.00027397,2]
[379199247,1755185455615,-400.0,0.00027397,2]
[379199248,1755185455624,-400.0,0.00027397,2]
[379199249,1755185455635,-400.0,0.00027397,2]
[379199250,1755185455644,-590.18,0.00027397,2]
[379199251,1755185455655,-400.0,0.00027397,2]
[379199252,1755185455665,-400.0,0.00027397,2]
[379199253,1755185455675,-1456.84,0.00027397,2]
[379199254,1755185455694,-619.0,0.00027397,2]
[379199255,1755185455704,-400.0,0.00027397,2]
[379199256,1755185455714,-400.0,0.00027397,2]
[379199257,1755185455724,-400.0,0.00027397,2]
[379199258,1755185455734,-518.59,0.00027397,2]
[379199259,1755185455743,-4597.26,0.00027397,2]
[379199260,1755185455753,-400.0,0.00027397,2]
[379199261,1755185455763,-518.59,0.00027397,2]
[379199262,1755185455772,-518.59,0.00027397,2]
[379199263,1755185455782,-465.700249,0.00027397,7]
[379199264,1755185455792,-518.59,0.00027397,2]
[379199265,1755185455801,-465.700249,0.00027397,7]
[379199266,1755185455811,-518.59,0.00027397,2]
[379199267,1755185455820,-518.59,0.00027397,2]
[379199268,1755185455830,-465.700249,0.00027397,7]
[379199269,1755185455839,-518.59,0.00027397,2]
[379199270,1755185455849,-400.0,0.00027397,2]
[379199271,1755185455859,-400.0,0.00027397,2]
[379199272,1755185455868,-518.59,0.00027397,2]
[379199273,1755185455878,-518.59,0.00027397,2]
[379199274,1755185455889,-518.59,0.00027397,2]
[379199275,1755185455899,-2363.08,0.00027397,2]
[379199276,1755185455908,-400.0,0.00027397,2]
[379199277,1755185455917,-518.59,0.00027397,2]
[379199278,1755185455927,-518.59,0.00027397,2]
[379199279,1755185455936,-518.59,0.00027397,2]
[379199280,1755185455946,-518.59,0.00027397,2]
[379199281,1755185455957,-518.59,0.00027397,2]
[379199282,1755185455967,-1884.41,0.00027397,2]
[379199283,1755185455977,-465.700249,0.00027397,7]
[379199284,1755185455986,-500.0,0.00027397,2]
[379199285,1755185455996,-465.700249,0.00027397,7]
[379199286,1755185456006,-465.700249,0.00027397,7]
[379199287,1755185456015,-1504.81,0.00027397,2]
[379199288,1755185456025,-400.0,0.00027397,2]
[379199289,1755185456035,-400.0,0.00027397,2]
[379199290,1755185456046,-4862.32,0.00027397,2]
[379199291,1755185456057,-150.0,0.00027397,2]
[379199292,1755185456066,-460.0,0.00027397,2]
[379199293,1755185456076,-400.0,0.00027397,2]
[379199294,1755185456086,-4897.77,0.00027397,2]
[379199295,1755185456095,-500.0,0.00027397,2]
[379199296,1755185456105,-400.0,0.00027397,2]
[379199297,1755185456114,-569.0,0.00027397,2]
[379199298,1755185456125,-3471.18,0.00027397,2]
[379199299,1755185456138,-1081.87,0.00027397,2]
[379199300,1755185456147,-894.97,0.00027397,2]
[379199301,1755185456157,-3023.68,0.00027397,2]
[379199302,1755185456167,-428.85,0.00027397,2]
[379199303,1755185456176,-400.0,0.00027397,2]
[379199304,1755185456186,-1807.38,0.00027397,2]
[379199305,1755185456196,-400.0,0.00027397,2]
[379199306,1755185456206,-389.45197762,0.00027397,2]
[379199307,1755185456216,-400.0,0.00027397,2]
[379199308,1755185456225,-7970.69,0.00027397,2]
[379199309,1755185456235,-400.0,0.00027397,2]
[379199310,1755185456245,-477.0,0.00027397,2]
[379199311,1755185456254,-1865.93,0.00027397,2]
[379199312,1755185456264,-2817.71,0.00027397,2]
[379199313,1755185456273,-400.0,0.00027397,2]
[379199314,1755185456283,-1995.04,0.00027397,2]
[379199315,1755185456292,-1528.81,0.00027397,2]
[379199316,1755185456301,-1199.56,0.00027397,2]
[379199317,1755185456311,-713.62,0.00027397,2]
[379199318,1755185456320,-887.37,0.00027397,2]
[379199319,1755185456330,-937.29,0.00027397,2]
[379199320,1755185456340,-400.0,0.00027397,2]
[379199321,1755185456349,-400.0,0.00027397,2]
[379199322,1755185456359,-3701.03,0.00027397,2]
[379199323,1755185456369,-3074.37,0.00027397,2]
[379199324,1755185456379,-6499.8,0.00027397,2]
[379199325,1755185456388,-971.55,0.00027397,2]
[379199326,1755185456398,-400.0,0.00027397,2]
[379199327,1755185456407,-400.0,0.00027397,2]
[379199328,1755185456417,-2891.02,0.00027397,2]
[379199329,1755185456426,-626.9,0.00027397,2]
[379199330,1755185456436,-3422.12,0.00027397,2]
[379199331,1755185456446,-400.0,0.00027397,2]
[379199332,1755185456455,-315.40181519,0.00027397,2]
[379199333,1755185456465,-1164.81,0.00027397,2]
[379199334,1755185456475,-8982.36,0.00027397,2]
[379199335,1755185456484,-400.0,0.00027397,2]
[379199336,1755185456494,-400.0,0.00027397,2]
[379199337,1755185456503,-4339.27,0.00027397,2]
[379199338,1755185456513,-2768.45,0.00027397,2]
[379199339,1755185456522,-2542.16,0.00027397,2]
[379199340,1755185456532,-764.58,0.00027397,2]
[379199341,1755185456542,-1095.04,0.00027397,2]
[379199342,1755185456551,-5129.23,0.00027397,2]
[379199343,1755185456561,-2240.27,0.00027397,2]
[379199344,1755185456572,-20753.20322211,0.00027397,2]
[379199345,1755185456581,-423.15,0.00027397,2]
[379199346,1755185456591,-400.0,0.00027397,2]
[379199347,1755185456601,-893.69,0.00027397,2]
[379199348,1755185456610,-400.0,0.00027397,2]
[379199349,1755185456620,-400.0,0.00027397,2]
[379199350,1755185456630,-538.08,0.00027397,2]
[379199351,1755185456640,-2919.2,0.00027397,2]
[379199352,1755185456650,-400.0,0.00027397,2]
[379199353,1755185456660,-400.0,0.00027397,2]
[379199354,1755185456669,-2792.57,0.00027397,2]
[379199355,1755185456679,-1332.28,0.00027397,2]
[379199356,1755185456692,-400.0,0.00027397,2]
[379199357,1755185456702,-400.0,0.00027397,2]
[379199358,1755185456711,-2643.38,0.00027397,2]
[379199359,1755185456720,-400.0,0.00027397,2]
[379199360,1755185456729,-400.0,0.00027397,2]
[379199361,1755185456739,-641.09,0.00027397,2]
[379199362,1755185456748,-400.0,0.00027397,2]
[379199363,1755185456758,-1748.27,0.00027397,2]
[379199364,1755185456767,-400.0,0.00027397,2]
[379199365,1755185456777,-776.53,0.00027397,2]
[379199366,1755185456787,-4767.71,0.00027397,2]
[379199367,1755185456796,-1779.83,0.00027397,2]
[379199368,1755185456805,-400.0,0.00027397,2]
[379199369,1755185456815,-3318.81,0.00027397,2]
[379199370,1755185456824,-1273.75,0.00027397,2]
[379199371,1755185456834,-2498.66,0.00027397,2]
[379199372,1755185456844,-1029.0,0.00027397,2]
[379199373,1755185456853,-400.0,0.00027397,2]
[379199374,1755185456862,-400.0,0.00027397,2]
[379199375,1755185456871,-400.0,0.00027397,2]
[379199376,1755185456881,-410.38,0.00027397,2]
[379199377,1755185456891,-400.0,0.00027397,2]
[379199378,1755185456900,-400.0,0.00027397,2]
[379199379,1755185456909,-400.0,0.00027397,2]
[379199380,1755185456919,-400.0,0.00027397,2]
[379199381,1755185456928,-4631.46,0.00027397,2]
[379199382,1755185456938,-3095.94,0.00027397,2]
[379199383,1755185456947,-427.57,0.00027397,2]
[379199384,1755185456956,-1105.25,0.00027397,2]
[379199385,1755185456966,-500.0,0.00027397,2]
[379199386,1755185456975,-412.07,0.00027397,2]
[379199387,1755185456985,-500.0,0.00027397,2]
[379199388,1755185456995,-2366.19,0.00027397,2]
[379199389,1755185457004,-608.08,0.00027397,2]
[379199390,1755185457017,-614.6,0.00027397,2]
[379199391,1755185457035,-400.0,0.00027397,2]
[379199392,1755185457049,-1241.45,0.00027397,2]
[379199393,1755185457065,-1669.96,0.00027397,2]
[379199394,1755185457082,-1241.45,0.00027397,2]
[379199395,1755185457098,-1241.45,0.00027397,2]
[379199396,1755185457111,-400.0,0.00027397,2]
[379199397,1755185457129,-500.0,0.00027397,2]
[379199398,1755185457146,-1241.45,0.00027397,2]
[379199399,1755185457163,-1241.45,0.00027397,2]
[379199400,1755185457181,-400.0,0.00027397,2]
[379199401,1755185457198,-3816.3,0.00027397,2]
[379199402,1755185457214,-1241.45,0.00027397,2]
[379199403,1755185457229,-1615.15,0.00027397,2]
[379199404,1755185457247,-1241.45,0.00027397,2]
[379199405,1755185457261,-1241.45,0.00027397,2]
[379199406,1755185457276,-1241.45,0.00027397,2]
[379199407,1755185457289,-1241.45,0.00027397,2]
[379199408,1755185457306,-1241.45,0.00027397,2]
[379199409,1755185457319,-1415.29,0.00027397,2]
[379199410,1755185457331,-1241.45,0.00027397,2]
[379199411,1755185457349,-400.0,0.00027397,2]
[379199412,1755185457363,-1241.45,0.00027397,2]
[379199413,1755185457375,-1241.45,0.00027397,2]
[379199414,1755185457391,-1716.24,0.00027397,2]
[379199415,1755185457405,-400.0,0.00027397,2]
[379199416,1755185457419,-2033.38,0.00027397,2]
[379199417,1755185457434,-4426.53,0.00027397,2]
[379199418,1755185457448,-6479.22,0.00027397,2]
[379199419,1755185457464,-930.18,0.00027397,2]
[379199420,1755185457479,-400.0,0.00027397,2]
[379199421,1755185457493,-4724.0,0.00027397,2]
[379199422,1755185457506,-5357.4,0.00027397,2]
[379199423,1755185457519,-400.0,0.00027397,2]
[379199424,1755185457532,-3518.08,0.00027397,2]
[379199425,1755185457545,-400.0,0.00027397,2]
[379199426,1755185457558,-400.0,0.00027397,2]
[379199427,1755185457571,-400.0,0.00027397,2]
[379199428,1755185457584,-1301.11,0.00027397,2]
[379199429,1755185457599,-400.0,0.00027397,2]
[379199430,1755185457613,-400.0,0.00027397,2]
[379199431,1755185457627,-407.01,0.00027397,2]
[379199432,1755185457642,-400.0,0.00027397,2]
[379199433,1755185457656,-400.0,0.00027397,2]
[379199434,1755185457669,-996.78,0.00027397,2]
[379199435,1755185457683,-400.0,0.00027397,2]
[379199436,1755185457699,-8570.57,0.00027397,2]
[379199437,1755185457715,-1778.89,0.00027397,2]
[379199438,1755185457732,-400.0,0.00027397,2]
[379199439,1755185457750,-523.13,0.00027397,2]
[379199440,1755185457770,-3081.95,0.00027397,2]
[379199441,1755185457784,-9514.37,0.00027397,2]
[379199442,1755185457811,-5712.02,0.00027397,2]
[379199443,1755185457825,-6417.21,0.00027397,2]
[379199444,1755185457839,-5766.49,0.00027397,2]
[379199445,1755185457852,-488.92,0.00027397,2]
[379199446,1755185457865,-400.0,0.00027397,2]
[379199447,1755185457878,-400.0,0.00027397,2]
[379199448,1755185457892,-500.0,0.00027397,2]
[379199449,1755185457905,-1679.25,0.00027397,2]
[379199450,1755185457916,-2544.75,0.00027397,2]
[379199451,1755185457928,-771.19,0.00027397,2]
[379199452,1755185457941,-500.0,0.00027397,2]
[379199453,1755185457953,-872.7,0.00027397,2]
[379199454,1755185457966,-400.0,0.00027397,2]
[379199455,1755185457977,-1389.37,0.00027397,2]
[379199456,1755185457990,-25364.36,0.00027397,2]
[379199457,1755185458005,-1502.87,0.00027397,2]
[379199458,1755185458019,-500.0,0.00027397,2]
[379199459,1755185458032,-400.0,0.00027397,2]
[379199460,1755185458046,-150.0,0.00027397,2]
[379199461,1755185458061,-400.0,0.00027397,2]
[379199462,1755185458075,-400.0,0.00027397,2]
[379199463,1755185458089,-3248.41,0.00027397,2]
[379199464,1755185458102,-10143.75,0.00027397,2]
[379199465,1755185458117,-945.37,0.00027397,2]
[379199466,1755185458136,-1077.25,0.00027397,2]
[379199467,1755185458151,-6998.86,0.00027397,2]
[379199468,1755185458166,-400.0,0.00027397,2]
[379199469,1755185458179,-400.0,0.00027397,2]
[379199470,1755185458194,-500.0,0.00027397,2]
[379199471,1755185458209,-500.0,0.00027397,2]
[379199472,1755185458223,-500.0,0.00027397,2]
[379199473,1755185458237,-3026.01,0.00027397,2]
[379199474,1755185458251,-289.3553138,0.00027397,2]
[379199475,1755185458264,-400.0,0.00027397,2]
[379199476,1755185458278,-955.05,0.00027397,2]
[379199477,1755185458293,-4765.89,0.00027397,2]
[379199478,1755185458309,-500.0,0.00027397,2]
[379199479,1755185458323,-500.0,0.00027397,2]
[379199480,1755185458337,-500.0,0.00027397,2]
[379199481,1755185458352,-500.0,0.00027397,2]
[379199482,1755185458366,-511.11336131,0.00027397,2]
[379199483,1755185458381,-854.86,0.00027397,2]
[379199484,1755185458395,-8865.83,0.00027397,2]
[379199485,1755185458410,-430.05,0.00027397,2]
[379199486,1755185458424,-400.0,0.00027397,2]
[379199487,1755185458438,-405.24,0.00027397,2]
[379199488,1755185458453,-400.0,0.00027397,2]
[379199489,1755185458467,-400.0,0.00027397,2]
[379199490,1755185458481,-400.0,0.00027397,2]
[379199491,1755185458494,-1104.18,0.00027397,2]
[379199492,1755185458508,-1867.52,0.00027397,2]
[379199493,1755185458522,-500.0,0.00027397,10]
[379199494,1755185458535,-480.6,0.00027397,2]
[379199495,1755185458549,-1069.9,0.00027397,2]
[379199496,1755185458562,-400.0,0.00027397,2]
[379199497,1755185458575,-8393.7,0.00027397,2]
[379199498,1755185458589,-7291.17,0.00027397,2]
[379199499,1755185458602,-6474.25,0.00027397,2]
[379199500,1755185458616,-2623.36,0.00027397,2]
[379199501,1755185458629,-903.34,0.00027397,2]
[379199502,1755185458643,-507.53,0.00027397,2]
[379199503,1755185458657,-1325.24,0.00027397,2]
[379199504,1755185458671,-400.0,0.00027397,2]
[379199505,1755185458684,-400.0,0.00027397,2]
[379199506,1755185458698,-400.0,0.00027397,2]
[379199507,1755185458712,-400.0,0.00027397,2]
[379199508,1755185458725,-400.0,0.00027397,2]
[379199509,1755185458738,-7650.45,0.00027397,2]
[379199510,1755185458751,-14633.71,0.00027397,2]
[379199511,1755185458764,-554.21,0.00027397,2]
[379199512,1755185458777,-400.0,0.00027397,2]
[379199513,1755185458791,-400.0,0.00027397,2]
[379199514,1755185458804,-1412.24,0.00027397,2]
[379199515,1755185458817,-400.0,0.00027397,2]
[379199516,1755185458830,-2798.34,0.00027397,2]
[379199517,1755185458843,-576.58,0.00027397,2]
[379199518,1755185458857,-3043.5,0.00027397,2]
[379199519,1755185458869,-3319.42,0.00027397,2]
[379199520,1755185458883,-2957.52,0.00027397,2]
[379199521,1755185458897,-400.0,0.00027397,2]
[379199522,1755185458910,-5118.48,0.00027397,2]
[379199523,1755185458923,-1425.49,0.00027397,2]
[379199524,1755185458937,-457.19,0.00027397,2]
[379199525,1755185458949,-1391.47,0.00027397,2]
[379199526,1755185458962,-3051.11,0.00027397,2]
[379199527,1755185458975,-400.0,0.00027397,2]
[379199528,1755185458988,-7119.26,0.00027397,2]
[379199529,1755185459002,-1461.82,0.00027397,2]
[379199530,1755185459014,-400.0,0.00027397,2]
[379199531,1755185459028,-4194.05,0.00027397,2]
[379199532,1755185459041,-400.0,0.00027397,2]
[379199533,1755185459054,-400.0,0.00027397,2]
[379199534,1755185459067,-1979.5,0.00027397,2]
[379199535,1755185459080,-7618.68,0.00027397,2]
[379199536,1755185459094,-567.15,0.00027397,2]
[379199537,1755185459107,-400.0,0.00027397,2]
[379199538,1755185459120,-4822.62,0.00027397,2]
[379199539,1755185459139,-400.0,0.00027397,2]
[379199540,1755185459153,-400.0,0.00027397,2]
[379199541,1755185459166,-485.62,0.00027397,2]
[379199542,1755185459179,-8328.83,0.00027397,2]
[379199543,1755185459193,-400.0,0.00027397,2]
[379199544,1755185459208,-400.0,0.00027397,2]
[379199545,1755185459221,-500.0,0.00027397,2]
[379199546,1755185459234,-423.0,0.00027397,2]
[379199547,1755185459247,-500.0,0.00027397,2]
[379199548,1755185459260,-150.0,0.00027397,2]
[379199549,1755185459274,-500.0,0.00027397,2]
[379199550,1755185459287,-821.23,0.00027397,2]
[379199551,1755185459300,-500.0,0.00027397,2]
[379199552,1755185459314,-500.0,0.00027397,2]
[379199553,1755185459327,-500.0,0.00027397,2]
[379199554,1755185459340,-500.0,0.00027397,2]
[379199555,1755185459353,-500.0,0.00027397,2]
[379199556,1755185459367,-500.0,0.00027397,2]
[379199557,1755185459380,-500.0,0.00027397,2]
[379199558,1755185459396,-6152.81,0.00027397,2]
[379199559,1755185459410,-500.0,0.00027397,2]
[379199560,1755185459423,-2693.87,0.00027397,2]
[379199561,1755185459436,-3152.44,0.00027397,2]
[379199562,1755185459448,-500.0,0.00027397,2]
[379199563,1755185459460,-500.0,0.00027397,2]
[379199564,1755185459472,-1176.77,0.00027397,2]
[379199565,1755185459484,-500.0,0.00027397,2]
[379199566,1755185459497,-907.24,0.00027397,2]
[379199567,1755185459509,-500.0,0.00027397,2]
[379199568,1755185459522,-9324.24,0.00027397,2]
[379199569,1755185459534,-500.0,0.00027397,2]
[379199570,1755185459547,-1648.5,0.00027397,2]
[379199571,1755185459563,-400.0,0.00027397,2]
[379199572,1755185459576,-400.0,0.00027397,2]
[379199573,1755185459589,-150.0,0.00027397,2]
[379199574,1755185459602,-400.0,0.00027397,2]
[379199575,1755185459615,-12493.03,0.00027397,2]
[379199576,1755185459627,-400.0,0.00027397,2]
[379199577,1755185459641,-400.0,0.00027397,2]
[379199578,1755185459653,-150.45686372,0.00027397,2]
[379199579,1755185459666,-150.0,0.00027397,2]
[379199580,1755185459679,-400.0,0.00027397,2]
[379199581,1755185459690,-5283.4,0.00027397,2]
[379199582,1755185459703,-4154.62,0.00027397,2]
[379199583,1755185459716,-575.75,0.00027397,2]
[379199584,1755185459728,-150.0,0.00027397,2]
[379199585,1755185459740,-985.22,0.00027397,2]
[379199586,1755185459753,-581.38,0.00027397,2]
[379199587,1755185459764,-2157.4,0.00027397,2]
[379199588,1755185459777,-6027.64,0.00027397,2]
[379199589,1755185459790,-2157.4,0.00027397,2]
[379199590,1755185459802,-496.93,0.00027397,2]
[379199591,1755185459815,-2157.4,0.00027397,2]
[379199592,1755185459827,-2157.4,0.00027397,2]
[379199593,1755185459839,-5280.57,0.00027397,2]
[379199594,1755185459851,-400.0,0.00027397,2]
[379199595,1755185459864,-308.58213457,0.00027397,2]
[379199596,1755185459876,-2157.4,0.00027397,2]
[379199597,1755185459891,-800.51,0.00027397,2]
[379199598,1755185459903,-2157.4,0.00027397,2]
[379199599,1755185459916,-2157.4,0.00027397,2]
[379199600,1755185459929,-2157.4,0.00027397,2]
[379199601,1755185459942,-2557.41,0.00027397,2]
[379199602,1755185459955,-2157.4,0.00027397,2]
[379199603,1755185459967,-2157.4,0.00027397,2]
[379199604,1755185459980,-6846.66,0.00027397,2]
[379199605,1755185459993,-2157.4,0.00027397,2]
[379199606,1755185460005,-400.0,0.00027397,2]
[379199607,1755185460018,-2157.4,0.00027397,2]
[379199608,1755185460031,-3085.02,0.00027397,2]
[379199609,1755185460044,-2157.4,0.00027397,2]
[379199610,1755185460057,-1756.56,0.00027397,2]
[379199611,1755185460070,-2157.4,0.00027397,2]
[379199612,1755185460082,-11504.48,0.00027397,2]
[379199613,1755185460096,-2157.4,0.00027397,2]
[379199614,1755185460109,-2557.24,0.00027397,2]
[379199615,1755185460124,-400.0,0.00027397,2]
[379199616,1755185460139,-1211.83,0.00027397,2]
[379199617,1755185460152,-400.0,0.00027397,2]
[379199618,1755185460164,-3391.88,0.00027397,2]
[379199619,1755185460177,-400.0,0.00027397,2]
[379199620,1755185460190,-1100.77,0.00027397,2]
[379199621,1755185460204,-3801.64,0.00027397,2]
[379199622,1755185460219,-3485.83,0.00027397,2]
[379199623,1755185460232,-400.0,0.00027397,2]
[379199624,1755185460245,-13666.85,0.00027397,2]
[379199625,1755185460258,-400.0,0.00027397,2]
[379199626,1755185460271,-400.0,0.00027397,2]
[379199627,1755185460284,-400.0,0.00027397,2]
[379199628,1755185460297,-2846.11,0.00027397,2]
[379199629,1755185460310,-400.0,0.00027397,2]
[379199630,1755185460322,-628.0,0.00027397,2]
[379199631,1755185460335,-11329.28,0.00027397,2]
[379199632,1755185460348,-6326.44,0.00027397,2]
[379199633,1755185460361,-5281.85,0.00027397,2]
[379199634,1755185460373,-9573.35,0.00027397,2]
[379199635,1755185460389,-325.47431579,0.00027397,2]
[379199636,1755185460402,-150.0,0.00027397,2]
[379199637,1755185460414,-6179.54,0.00027397,2]
[379199638,1755185460427,-877.22,0.00027397,2]
[379199639,1755185460440,-500.0,0.00027397,2]
[379199640,1755185460452,-400.0,0.00027397,2]
[379199641,1755185460465,-400.0,0.00027397,2]
[379199642,1755185460477,-400.0,0.00027397,2]
[379199643,1755185460491,-400.0,0.00027397,2]
[379199644,1755185460504,-400.0,0.00027397,2]
[379199645,1755185460516,-2572.41,0.00027397,2]
[379199646,1755185460528,-1135.94,0.00027397,2]
[379199647,1755185460541,-1185.25,0.00027397,2]
[379199648,1755185460554,-3301.17,0.00027397,2]
[379199649,1755185460567,-169.82454236,0.00027397,2]
[379199650,1755185460580,-400.0,0.00027397,2]
[379199651,1755185460593,-1636.72,0.00027397,2]
[379199652,1755185460605,-437.76,0.00027397,2]
[379199653,1755185460618,-1345.93,0.00027397,2]
[379199654,1755185460631,-915.67,0.00027397,2]
[379199655,1755185460646,-18929.48,0.00027397,2]
[379199656,1755185460659,-945.16,0.00027397,2]
[379199657,1755185460671,-3525.86,0.00027397,2]
[379199658,1755185460684,-442.0,0.00027397,2]
[379199659,1755185460696,-1030.33,0.00027397,2]
[379199660,1755185460708,-400.0,0.00027397,2]
[379199661,1755185460721,-635.86,0.00027397,2]
[379199662,1755185460733,-6202.44,0.00027397,2]
[379199663,1755185460745,-400.0,0.00027397,2]
[379199664,1755185460757,-6566.64,0.00027397,2]
[379199665,1755185460771,-418.43,0.00027397,2]
[379199666,1755185460783,-859.69,0.00027397,2]
[379199667,1755185460795,-400.0,0.00027397,2]
[379199668,1755185460807,-5564.48,0.00027397,2]
[379199669,1755185460819,-3626.23,0.00027397,2]
[379199670,1755185460831,-537.37606465,0.00027397,2]
[379199671,1755185460843,-400.0,0.00027397,2]
[379199672,1755185460855,-3116.26,0.00027397,2]
[379199673,1755185460867,-500.0,0.00027397,2]
[379199674,1755185460879,-400.0,0.00027397,2]
[379199675,1755185460893,-3262.33,0.00027397,2]
[379199676,1755185460905,-1976.84,0.00027397,2]
[379199677,1755185461582,-400.0,0.00027397,2]
[379199678,1755185461618,-446.0,0.00027397,2]
[379199679,1755185461646,-480.73,0.00027397,2]
[379199680,1755185461675,-400.0,0.00027397,2]
[379199681,1755185461711,-1302.43,0.00027397,2]
[379199682,1755185461723,-400.0,0.00027397,2]
[379199683,1755185461732,-400.0,0.00027397,2]
[379199684,1755185461742,-400.0,0.00027397,2]
[379199685,1755185461751,-2424.23,0.00027397,2]
[379199686,1755185461760,-550.6,0.00027397,2]
[379199687,1755185461770,-730.126068,0.00027397,7]
[379199688,1755185461779,-730.126068,0.00027397,7]
[379199689,1755185461789,-730.126068,0.00027397,7]
[379199690,1755185461799,-400.0,0.00027397,2]
[379199691,1755185461808,-500.0,0.00027397,2]
[379199692,1755185461818,-606.72,0.00027397,2]
[379199693,1755185461828,-400.0,0.00027397,2]
[379199694,1755185461837,-400.0,0.00027397,2]
[379199695,1755185461847,-500.0,0.00027397,2]
[379199696,1755185461857,-730.126068,0.00027397,7]
[379199697,1755185461867,-17273.92,0.00027397,2]
[379199698,1755185461876,-2687.1,0.00027397,2]
[379199699,1755185461885,-730.126068,0.00027397,7]
[379199700,1755185461897,-4608.25,0.00027397,2]
[379199701,1755185461907,-150.0,0.00027397,2]
[379199702,1755185461916,-400.0,0.00027397,2]
[379199703,1755185461926,-730.126068,0.00027397,7]
[379199704,1755185461936,-1981.24,0.00027397,2]
[379199705,1755185461946,-2687.85,0.00027397,2]
[379199706,1755185461956,-2015.47,0.00027397,2]
[379199707,1755185461967,-400.0,0.00027397,2]
[379199708,1755185461976,-2929.51,0.00027397,2]
[379199709,1755185461986,-4685.61,0.00027397,2]
[379199710,1755185461996,-400.0,0.00027397,2]
[379199711,1755185462005,-5771.16,0.00027397,2]
[379199712,1755185462015,-400.0,0.00027397,2]
[379199713,1755185462024,-2142.41,0.00027397,2]
[379199714,1755185462034,-400.0,0.00027397,2]